bitfinex-derivatives/quotes_SOLF0:USTF0_20250929
["timestamp","ask_amount","ask_price","bid_price","bid_amount"]
[1759177115665,7.6,213.7,213.63,2.15876015]
[1759177115862,7.6,213.7,213.62,4.27]
[1759177116070,7.6,213.7,213.63,2.15876015]
[1759177116672,7.6,213.7,213.62,4.27]
[1759177116966,11.8084,213.72,213.66,2.15876015]
[1759177119379,4.2087,213.7,213.62,4.27]
[1759177119568,4.2087,213.7,213.64,2.15876015]
[1759177119771,11.8087,213.7,213.64,2.15876015]
[1759177120169,7.6,213.68,213.62,2.15876015]
[1759177121768,7.6,213.68,213.59,2.15876015]
[1759177122073,7.6,213.65,213.59,2.15876015]
[1759177123171,7.6,213.65,213.57,18.24121025]
[1759177123372,7.6,213.65,213.59,2.15876015]
[1759177123777,7.6,213.65,213.57,4.27]
[1759177123976,7.6,213.65,213.56,2.15876015]
[1759177124176,7.6,213.62,213.56,2.15876015]
[1759177124574,7.6,213.62,213.53,4.27]
[1759177124779,7.6,213.62,213.55,2.15876015]
[1759177124979,11.8104,213.62,213.55,2.15876015]
[1759177125177,7.6,213.62,213.55,2.15876015]
[1759177125377,7.6,213.62,213.58,2.15876015]
[1759177125577,65.4672,213.71,213.58,2.15876015]
[1759177125578,113.18,213.67,213.58,6.42876015]
[1759177125779,7.6,213.69,213.58,6.42876015]
[1759177125980,123.92,213.69,213.61,2.15876015]
[1759177126180,123.92,213.69,213.58,4.27]
[1759177126381,7.6,213.66,213.6,2.15876015]
[1759177127573,4.2098,213.65,213.6,2.15876015]
[1759177128377,7.6,213.64,213.6,2.15876015]
[1759177129081,7.6,213.64,213.58,4.27]
[1759177129386,7.6,213.64,213.59,2.15876015]
[1759177129685,11.8098,213.65,213.59,2.15876015]
[1759177130481,4.21,213.64,213.59,2.15876015]
[1759177130990,7.6,213.66,213.57,2.15876015]
[1759177131485,7.6,213.66,213.58,4.27]
[1759177131680,7.6,213.66,213.59,2.15876015]
[1759177132082,4.2098,213.65,213.59,2.15876015]
[1759177132994,7.6,213.66,213.59,2.15876015]
[1759177134588,11.8096,213.66,213.59,2.15876015]
[1759177135091,7.6,213.66,213.59,2.15876015]
[1759177135295,7.64,213.63,213.59,2.15876015]
[1759177135689,7.64,213.63,213.55,14.25185124]
[1759177135690,7.64,213.67,213.56,2.15876015]
[1759177136088,4.2104,213.62,213.56,2.15876015]
[1759177136496,4.2106,213.61,213.54,4.28]
[1759177136796,7.64,213.6,213.54,6.43876015]
[1759177137598,11.8508,213.6,213.54,6.43876015]
[1759177137792,7.64,213.6,213.54,6.43876015]
[1759177138099,7.64,213.6,213.48,2.11395041]
[1759177138100,7.64,213.64,213.57,2.15876015]
[1759177138897,11.85,213.64,213.57,2.15876015]
[1759177139293,7.64,213.64,213.57,2.15876015]
[1759177139493,7.64,213.61,213.57,2.15876015]
[1759177139697,7.64,213.65,213.57,2.15876015]
[1759177139906,7.64,213.65,213.55,4.28]
[1759177140398,11.8506,213.61,213.55,6.43876015]
[1759177141400,4.211,213.59,213.52,2.15876015]
[1759177141698,11.851,213.59,213.52,2.15876015]
[1759177142298,11.851,213.59,213.52,14.27762832]
[1759177142495,7.64,213.59,213.51,4.28]
[1759177142802,7.64,213.59,213.48,2.11395041]
[1759177142803,7.64,213.56,213.48,2.11395041]
[1759177143490,4.2124,213.52,213.45,2.15876015]
[1759177143693,11.8524,213.52,213.44,2.15876015]
[1759177143900,11.8524,213.52,213.44,15.92350789]
[1759177144802,7.64,213.52,213.44,15.92350789]
[1759177145302,7.64,213.52,213.44,13.76474774]
[1759177145503,7.64,213.52,213.45,2.15876015]
[1759177145993,11.8524,213.52,213.45,2.15876015]
[1759177146193,11.8524,213.52,213.43,6.43876015]
[1759177146194,7.64,213.52,213.43,6.43876015]
[1759177146389,122.1,213.52,213.43,2.15876015]
[1759177146903,7.64,213.47,213.4,2.15876015]
[1759177147203,7.64,213.47,213.31,7.30498377]
[1759177147204,7.64,213.47,213.35,4.28]
[1759177147394,7.64,213.43,213.35,4.28]
[1759177147594,7.64,213.43,213.34,2.15876015]
[1759177147803,2.15876015,213.42,213.31,6.43896713]
[1759177148003,7.64,213.39,213.28,4.2168]
[1759177148198,7.64,213.39,213.33,2.15876015]
[1759177148596,56.91876015,213.44,213.34,4.28]
[1759177148798,56.91876015,213.44,213.36,2.15876015]
[1759177149105,54.76,213.44,213.36,2.15876015]
[1759177150601,7.64,213.42,213.36,2.15876015]
[1759177150797,7.64,213.42,213.33,2.15876015]
[1759177151003,7.64,213.4,213.33,2.15876015]
[1759177151198,7.64,213.4,213.29,4.28]
[1759177151400,7.64,213.48,213.35,2.15876015]
[1759177151598,7.64,213.48,213.36,4.28]
[1759177151803,4.2135,213.46,213.39,2.15876015]
[1759177152003,7.64,213.45,213.36,2.15876015]
[1759177152702,7.64,213.45,213.34,4.2158]
[1759177152906,7.64,213.45,213.37,2.15876015]
[1759177153205,11.8537,213.45,213.37,2.15876015]
[1759177154407,2.15876015,213.46,213.36,2.15876015]
[1759177154599,7.48,213.45,213.36,2.15876015]
[1759177155606,4.2142,213.43,213.36,2.15876015]
[1759177155804,116.9,213.42,213.36,2.15876015]
[1759177156208,116.9,213.42,213.33,3.38101398]
[1759177156703,124.38,213.42,213.33,3.38101398]
[1759177157108,124.38,213.42,213.34,4.2158]
[1759177159006,7.48,213.48,213.36,7.67101398]
[1759177159202,7.48,213.46,213.36,7.67101398]
[1759177160410,4.2138,213.45,213.36,7.67101398]
[1759177161301,7.48,213.46,213.37,4.2152]
[1759177161701,7.48,213.46,213.36,4.29]
[1759177162010,11.6936,213.46,213.36,7.67101398]
[1759177162812,11.6936,213.46,213.36,11.88631398]
[1759177163114,7.48,213.46,213.4,4.29]
[1759177163615,116.7,213.48,213.4,4.29]
[1759177163815,116.7,213.48,213.41,4.2143]
[1759177164213,314.62,213.49,213.41,7.59531398]
[1759177164413,314.62,213.49,213.42,4.2141]
[1759177164715,124.22,213.5,213.42,4.2141]
[1759177165715,128.4328,213.5,213.42,4.2141]
[1759177167014,4.213,213.49,213.41,3.38101398]
[1759177168619,4.213,213.49,213.41,7.59531398]
[1759177169120,65.5135,213.56,213.35,65.5759]
[1759177169121,5.24066044,213.62,213.44,3.38101398]
[1759177169316,7.62,213.55,213.47,3.38101398]
[1759177169527,65.5071,213.58,213.43,7.66101398]
[1759177169528,7.62,213.53,213.43,7.66101398]
[1759177170119,7.62,213.51,213.43,11.87501398]
[1759177170324,7.62,213.51,213.43,7.66101398]
[1759177170622,7.62,213.51,213.46,7.66101398]
[1759177171621,38.08,213.54,213.47,4.28]
[1759177172020,38.08,213.54,213.49,4.2127]
[1759177172219,7.62,213.57,213.49,7.59371398]
[1759177174322,7.62,213.57,213.49,3.38101398]
[1759177174524,11.8313,213.57,213.49,3.38101398]
[1759177174712,7.62,213.57,213.49,3.38101398]
[1759177174912,7.62,213.57,213.5,4.2125]
[1759177175116,7.62,213.61,213.52,3.38101398]
[1759177175824,7.62,213.61,213.53,4.2119]
[1759177176023,7.62,213.61,213.53,4.28]
[1759177176330,60.92,213.62,213.49,17.47044189]
[1759177176625,60.92,213.62,213.47,4.28]
[1759177176626,7.62,213.6,213.47,4.28]
[1759177177120,4.2115,213.56,213.47,4.28]
[1759177177324,7.62,213.55,213.47,4.28]
[1759177177728,4.2119,213.55,213.45,13.85536823]
[1759177177919,7.62,213.54,213.44,3.38101398]
[1759177178727,11.832,213.54,213.44,7.59471398]
[1759177179019,11.832,213.54,213.44,21.83277258]
[1759177179620,7.62,213.54,213.46,4.2134]
[1759177180123,7.62,213.54,213.44,21.89907258]
[1759177181125,7.62,213.54,213.44,26.11277258]
[1759177181820,11.832,213.54,213.44,26.11277258]
[1759177182018,91.52,213.55,213.44,26.11277258]
[1759177182223,7.62,213.54,213.41,4.2143]
[1759177182423,7.62,213.5,213.4,7.66101398]
[1759177182624,7.62,213.5,213.4,4.28]
[1759177183519,4.2129,213.49,213.4,4.28]
[1759177185318,7.62,213.5,213.42,3.38101398]
[1759177185523,7.62,213.5,213.42,17.49397658]
[1759177185825,4.2125,213.51,213.43,4.28]
[1759177186329,11.8325,213.51,213.43,4.28]
[1759177191433,7.62,213.51,213.43,8.4939]
[1759177191731,7.62,213.51,213.43,4.28]
[1759177192629,11.8326,213.51,213.43,4.28]
[1759177194834,7.62,213.51,213.43,8.4939]
[1759177196735,11.8326,213.51,213.43,8.4939]
[1759177198132,11.8326,213.51,213.43,4.28]
[1759177199125,7.62,213.51,213.43,4.28]
[1759177199327,7.56,213.55,213.46,4.24]
[1759177199526,7.56,213.55,213.42,7.62101398]
[1759177200238,7.56,213.55,213.46,4.24]
[1759177201231,11.7718,213.55,213.46,8.4534]
[1759177201434,11.7718,213.55,213.46,11.83441398]
[1759177202728,11.7718,213.55,213.47,4.2131]
[1759177202931,11.7718,213.55,213.47,4.24]
[1759177203139,4.212,213.54,213.47,4.24]
[1759177204141,7.56,213.52,213.43,4.24]
[1759177205440,7.56,213.52,213.45,4.24]
[1759177205641,7.56,213.52,213.47,4.2131]
[1759177205841,4.2118,213.55,213.47,8.4531]
[1759177206539,7.56,213.56,213.48,4.2129]
[1759177206841,7.56,213.56,213.47,7.62101398]
[1759177207741,4.212,213.54,213.47,7.62101398]
[1759177208445,7.56,213.56,213.47,7.62101398]
[1759177208945,4.2119,213.54,213.47,7.62101398]
[1759177209638,116.18,213.56,213.47,7.62101398]
[1759177209939,7.56,213.51,213.44,3.38101398]
[1759177210243,7.56,213.51,213.43,4.24]
[1759177210244,4.2132,213.48,213.43,4.24]
[1759177210436,7.56,213.47,213.43,4.24]
[1759177210740,11.7732,213.48,213.42,13.90303256]
[1759177211036,4.2134,213.47,213.39,4.24]
[1759177212236,4.2136,213.46,213.39,4.24]
[1759177212843,4.2136,213.46,213.39,8.4547]
[1759177213141,4.2136,213.46,213.39,4.24]
[1759177214643,4.2136,213.46,213.39,18.16951946]
[1759177214939,7.56,213.48,213.39,4.24]
[1759177215139,65.5464,213.45,213.35,7.62101398]
[1759177215443,7.56,213.44,213.35,7.62101398]
[1759177215834,4.2143,213.42,213.35,7.62101398]
[1759177216236,4.2143,213.42,213.35,4.24]
[1759177216440,67.71609118,213.43,213.35,13.98271159]
[1759177216737,7.72,213.42,213.33,2.16339118]
[1759177217137,67.71609118,213.43,213.33,16.14460338]
[1759177217344,7.72,213.41,213.33,16.14460338]
[1759177218547,4.215,213.39,213.33,2.16339118]
[1759177218841,7.72,213.38,213.33,2.16339118]
[1759177219243,11.9352,213.38,213.31,6.45339118]
[1759177219442,11.9352,213.38,213.31,4.29]
[1759177221047,2.16339118,213.36,213.28,2.16339118]
[1759177221346,123.92,213.35,213.28,2.16339118]
[1759177221647,7.72,213.35,213.32,2.16339118]
[1759177222251,7.72,213.35,213.31,10.66979118]
[1759177225554,7.37,213.39,213.33,2.16339118]
[1759177228156,7.37,213.39,213.32,6.37949118]
[1759177228759,7.37,213.37,213.29,16.56185692]
[1759177230655,7.37,213.37,213.3,4.2165]
[1759177231168,116.22,213.39,213.32,4.2161]
[1759177232957,13.74799118,213.4,213.32,4.2161]
[1759177233163,129.98799118,213.4,213.32,4.2161]
[1759177234765,125.77339118,213.4,213.33,4.2159]
[1759177235066,7.37,213.4,213.33,2.16339118]
[1759177235260,7.37,213.4,213.31,4.29]
[1759177235563,7.37,213.4,213.33,2.16339118]
[1759177236667,7.37,213.4,213.36,4.29]
[1759177237457,7.37,213.42,213.36,4.29]
[1759177240365,11.5843,213.42,213.35,2.16339118]
[1759177241765,7.37,213.42,213.35,6.37889118]
[1759177242075,7.37,213.42,213.35,10.66889118]
[1759177246172,7.37,213.42,213.35,8.5055]
[1759177246366,11.5843,213.42,213.36,2.16339118]
[1759177247670,7.37,213.42,213.36,6.37869118]
[1759177247974,123.57,213.46,213.39,2.16339118]
[1759177248977,123.57,213.46,213.37,4.29]
[1759177249273,7.37,213.41,213.33,2.16339118]
[1759177249469,9.53339118,213.39,213.31,2.16339118]
[1759177249870,4.2153,213.37,213.31,2.16339118]
[1759177250169,11.5853,213.37,213.31,2.16339118]
[1759177250371,11.5853,213.37,213.31,6.37969118]
[1759177250574,7.37,213.37,213.31,6.37969118]
[1759177250980,7.37,213.37,213.31,2.16339118]
[1759177252582,7.37,213.37,213.31,6.37969118]
[1759177252884,7.37,213.37,213.31,2.16339118]
[1759177254074,7.37,213.37,213.31,6.37969118]
[1759177259492,7.37,213.37,213.28,4.29]
[1759177259493,2.16339118,213.37,213.28,4.29]
[1759177259785,7.42,213.34,213.25,2.16339118]
[1759177260581,4.2161,213.33,213.25,16.1090737]
[1759177261492,4.2161,213.33,213.27,2.16339118]
[1759177261695,4.2161,213.33,213.27,6.38049118]
[1759177264701,7.42,213.34,213.27,6.38049118]
[1759177265596,7.42,213.34,213.29,2.16339118]
[1759177265797,7.42,213.34,213.3,4.29]
[1759177265998,7.42,213.34,213.29,2.16339118]
[1759177266300,7.42,213.34,213.3,8.5065]
[1759177266502,7.42,213.37,213.3,8.5065]
[1759177266895,7.42,213.37,213.29,2.16339118]
[1759177267804,4.2155,213.36,213.29,2.16339118]
[1759177268300,7.42,213.35,213.29,2.16339118]
[1759177268500,2.16339118,213.33,213.22,4.29]
[1759177268703,7.42,213.28,213.2,2.16339118]
[1759177269605,7.42,213.28,213.2,6.38189118]
[1759177269805,7.42,213.28,213.2,2.16339118]
[1759177270003,7.42,213.28,213.22,2.16339118]
[1759177270502,7.42,213.28,213.23,4.2179]
[1759177270706,7.42,213.3,213.23,4.29]
[1759177271206,7.42,213.3,213.22,2.16339118]
[1759177271207,4.217,213.29,213.22,2.16339118]
[1759177271609,7.42,213.28,213.2,2.16339118]
[1759177272108,7.42,213.26,213.2,2.16339118]
[1759177274301,7.42,213.26,213.22,2.16339118]
[1759177274607,7.81,213.26,213.22,2.16339118]
[1759177275005,7.81,213.26,213.23,4.3]
[1759177275207,7.81,213.31,213.24,2.16339118]
[1759177276508,7.81,213.31,213.23,2.16339118]
[1759177276709,4.2169,213.29,213.23,2.16339118]
[1759177277106,7.81,213.31,213.23,2.16339118]
[1759177278206,7.81,213.31,213.21,3.38487455]
[1759177278408,7.81,213.31,213.22,4.3]
[1759177280406,65.5837,213.33,213.19,25.72805186]
[1759177280613,7.81,213.28,213.19,4.3]
[1759177280809,7.81,213.28,213.16,4.3]
[1759177281002,7.81,213.19,213.1,3.38487455]
[1759177281209,7.81,213.19,213.11,4.3]
[1759177281712,12.0289,213.19,213.12,4.22]
[1759177282714,7.81,213.19,213.12,4.22]
[1759177282905,7.81,213.19,213.12,18.4119168]
[1759177283404,68.99317455,213.25,213.1,7.60537455]
[1759177283405,7.81,213.18,213.1,7.60537455]
[1759177283606,7.81,213.18,213.1,4.2205]
[1759177284611,74.22123499,213.29,213.13,3.38487455]
[1759177284612,7.61,213.24,213.13,3.38487455]
[1759177284917,7.61,213.24,213.14,4.31]
[1759177285113,7.61,213.24,213.14,8.5298]
[1759177285318,7.61,213.24,213.14,4.31]
[1759177286018,7.61,213.24,213.14,7.69487455]
[1759177286619,11.8279,213.24,213.15,4.2194]
[1759177286818,7.61,213.24,213.14,4.31]
[1759177287217,7.61,213.24,213.16,4.2192]
[1759177287722,11.8278,213.24,213.16,4.2192]
[1759177288111,0.18454,213.3,213.18,3.38487455]
[1759177288318,7.61,213.29,213.18,3.38487455]
[1759177288725,7.61,213.29,213.19,4.31]
[1759177289722,4.217,213.28,213.2,4.2186]
[1759177290124,4.217,213.28,213.19,4.31]
[1759177290921,7.61,213.27,213.19,4.31]
[1759177292623,7.61,213.27,213.13,116.18]
[1759177292624,7.61,213.27,213.15,3.38487455]
[1759177292830,7.61,213.27,213.16,4.31]
[1759177293423,7.61,213.25,213.16,4.31]
[1759177293627,3.38487455,213.26,213.12,18.25444055]
[1759177293628,68.99007455,213.26,213.12,18.25444055]
[1759177293829,7.61,213.2,213.12,4.31]
[1759177294124,7.61,213.2,213.11,4.2203]
[1759177294529,7.61,213.2,213.12,4.22]
[1759177295637,3.38487455,213.26,213.13,4.31]
[1759177295825,110.21,213.25,213.13,4.31]
[1759177296231,4.2182,213.23,213.13,4.31]
[1759177296933,11.8282,213.23,213.13,4.31]
[1759177297530,11.8282,213.23,213.14,4.2198]
[1759177298341,11.8282,213.23,213.15,4.2194]
[1759177300538,7.61,213.29,213.19,4.31]
[1759177301746,7.61,213.29,213.2,3.38487455]
[1759177301945,7.61,213.29,213.22,4.2181]
[1759177302141,7.61,213.29,213.2,3.38487455]
[1759177302345,0.18454,213.3,213.23,3.38487455]
[1759177302840,0.18454,213.3,213.22,4.31]
[1759177303044,0.18454,213.3,213.15,65.638]
[1759177303045,7.61,213.29,213.18,7.69487455]
[1759177304539,7.61,213.27,213.14,4.31]
[1759177304741,65.6051,213.26,213.14,4.31]
[1759177304946,65.6051,213.26,213.12,14.38741103]
[1759177305147,7.61,213.25,213.1,7.69487455]
[1759177305742,7.61,213.2,213.1,7.69487455]
[1759177306148,7.61,213.2,213.1,21.91624291]
[1759177306446,7.61,213.2,213.1,7.69487455]
[1759177306650,4.2189,213.19,213.11,4.2203]
[1759177306845,7.61,213.2,213.1,4.31]
[1759177307549,4.2191,213.18,213.1,4.31]
[1759177307947,7.61,213.17,213.1,4.31]
[1759177309149,7.61,213.17,213.1,8.5304]
[1759177309551,4.2182,213.22,213.1,4.31]
[1759177309746,11.8282,213.22,213.11,3.38487455]
[1759177310148,89.30487455,213.24,213.1,4.31]
[1759177310149,65.6152,213.23,213.1,4.31]
[1759177310355,73.2252,213.23,213.1,4.31]
[1759177310546,7.61,213.23,213.1,4.31]
[1759177310746,154.91677455,213.24,213.1,8.5304]
[1759177310747,7.61,213.19,213.1,8.5304]
[1759177312658,11.8289,213.19,213.1,8.5304]
[1759177312954,11.8289,213.19,213.1,4.2204]
[1759177313351,7.61,213.19,213.1,8.5304]
[1759177314561,11.8288,213.19,213.1,8.5304]
[1759177315452,4.2191,213.18,213.1,4.31]
[1759177316255,7.61,213.19,213.1,8.5304]
[1759177317854,11.8289,213.19,213.1,8.5304]
[1759177319056,4.2191,213.18,213.1,8.5304]
[1759177319454,7.61,213.19,213.1,4.31]
[1759177319856,7.61,213.19,213.09,3.38487455]
[1759177320654,4.2193,213.17,213.09,3.38487455]
[1759177320953,7.79,213.16,213.09,3.38487455]
[1759177321558,12.0086,213.2,213.1,4.31]
[1759177322658,12.0086,213.2,213.12,4.22]
[1759177323560,7.79,213.2,213.14,4.31]
[1759177323863,7.79,213.2,213.13,4.2198]
[1759177324564,12.0087,213.2,213.13,4.2198]
[1759177325363,12.0087,213.2,213.11,7.60517455]
[1759177325961,4.2189,213.19,213.11,7.60517455]
[1759177327966,4.2189,213.19,213.11,3.38487455]
[1759177328270,7.79,213.2,213.12,4.22]
[1759177328972,7.79,213.2,213.1,4.31]
[1759177330073,12.0086,213.2,213.11,4.2203]
[1759177330271,7.79,213.2,213.1,4.31]
[1759177331569,4.2189,213.19,213.12,4.22]
[1759177336881,4.2189,213.19,213.13,4.2198]
[1759177338485,4.2189,213.19,213.13,6.38814753]
[1759177339885,7.79,213.2,213.13,6.38814753]
[1759177340385,4.2184,213.21,213.15,2.16834753]
[1759177340587,11.8284,213.21,213.15,2.16834753]
[1759177342699,11.8284,213.21,213.13,10.69814753]
[1759177343387,7.61,213.19,213.13,6.47834753]
[1759177343589,7.61,213.19,213.13,2.16834753]
[1759177344894,7.61,213.19,213.13,6.46834753]
[1759177345086,4.2183,213.22,213.08,14.00830481]
[1759177345289,7.38,213.12,213.03,6.46834753]
[1759177345484,2.16834753,213.11,213.03,6.46834753]
[1759177346594,6.38884753,213.11,213.03,6.46834753]
[1759177347696,6.38884753,213.11,213.03,20.87027964]
[1759177348494,4.2205,213.11,213.03,20.87027964]
[1759177348896,7.38,213.16,213.06,4.3]
[1759177349090,9.54834753,213.16,213.06,4.3]
[1759177349297,4.2203,213.12,213.06,4.3]
[1759177349497,7.38,213.13,213.06,4.3]
[1759177350602,7.38,213.17,213.07,2.16834753]
[1759177350794,7.38,213.17,213.08,8.5209]
[1759177350997,7.38,213.17,213.09,2.16834753]
[1759177351800,7.38,213.17,213.1,4.3]
[1759177352696,11.5993,213.17,213.1,4.3]
[1759177354603,5.24066044,213.21,213.1,4.3]
[1759177354898,7.38,213.26,213.18,2.16834753]
[1759177355109,5.24066044,213.29,213.23,2.16834753]
[1759177355399,2.16834753,213.28,213.18,2.16834753]
[1759177355702,7.38,213.29,213.2,2.16834753]
[1759177356002,7.38,213.29,213.25,4.3]
[1759177356603,0.18132,213.31,213.27,6.46834753]
[1759177358597,0.18132,213.31,213.28,4.3]
[1759177359805,0.18132,213.31,213.28,18.55014544]
[1759177361696,7.38,213.34,213.29,4.3]
[1759177361898,7.38,213.35,213.29,4.3]
[1759177362197,315.26,213.38,213.3,6.46834753]
[1759177362396,7.38,213.37,213.3,6.46834753]
[1759177362605,7.38,213.4,213.33,2.16834753]
[1759177366200,7.38,213.4,213.33,6.46834753]
[1759177367603,7.38,213.4,213.28,13.72608723]
[1759177367604,7.38,213.34,213.28,13.72608723]
[1759177367906,7.38,213.34,213.26,6.46834753]
[1759177368107,4.216,213.33,213.25,2.16834753]
[1759177368499,4.216,213.33,213.22,4.3]
[1759177368709,4.216,213.33,213.25,2.16834753]
[1759177368909,4.2165,213.31,213.25,2.16834753]
[1759177369210,7.38,213.32,213.25,13.95974939]
[1759177369412,7.38,213.32,213.22,6.46834753]
[1759177370610,4.2166,213.3,213.22,4.3]
[1759177370805,4.2166,213.3,213.24,2.16834753]
[1759177371202,7.38,213.28,213.24,2.16834753]
[1759177372005,7.38,213.26,213.24,13.77906358]
[1759177372204,7.38,213.26,213.22,2.16834753]
[1759177372398,7.38,213.26,213.22,6.46834753]
[1759177372799,2.16834753,213.31,213.22,6.46834753]
[1759177373007,7.38,213.3,213.26,4.3]
[1759177374009,11.596,213.33,213.27,2.16834753]
[1759177375712,7.38,213.33,213.27,2.16834753]
[1759177376802,4.2158,213.35,213.29,2.16834753]
[1759177377401,7.39,213.37,213.29,2.16834753]
[1759177377604,7.39,213.37,213.29,6.47834753]
[1759177377913,7.39,213.37,213.31,2.16834753]
[1759177379916,7.39,213.37,213.33,2.16834753]
[1759177380114,7.39,213.37,213.33,6.47834753]
[1759177380311,7.39,213.36,213.24,14.27042574]
[1759177380515,7.39,213.34,213.24,2.16834753]
[1759177380717,123.63,213.34,213.24,2.16834753]
[1759177381011,7.39,213.32,213.24,2.16834753]
[1759177382609,4.2166,213.31,213.24,2.16834753]
[1759177384413,4.2168,213.3,213.24,2.16834753]
[1759177385319,11.6063,213.32,213.24,2.16834753]
[1759177386022,4.2166,213.3,213.24,2.16834753]
[1759177386420,7.39,213.32,213.24,2.16834753]
[1759177386824,11.6064,213.32,213.24,2.16834753]
[1759177387214,11.6064,213.32,213.26,2.16834753]
[1759177388525,7.39,213.32,213.28,2.16834753]
[1759177388824,7.39,213.33,213.28,2.16834753]
[1759177389025,4.2158,213.34,213.28,2.16834753]
[1759177389421,4.2162,213.33,213.28,2.16834753]
[1759177389621,7.39,213.32,213.28,2.16834753]
[1759177389826,4.2162,213.33,213.28,2.16834753]
[1759177390019,7.39,213.32,213.28,2.16834753]
[1759177390326,7.39,213.32,213.28,6.47834753]
[1759177390824,11.6056,213.35,213.28,2.16834753]
[1759177392417,7.39,213.35,213.3,2.16834753]
[1759177392622,42.21,213.4,213.32,2.16834753]
[1759177392830,7.39,213.39,213.31,2.16834753]
[1759177393128,34.82,213.4,213.31,2.16834753]
[1759177393129,100.3821,213.4,213.31,2.16834753]
[1759177393328,9.55834753,213.39,213.29,2.16834753]
[1759177394317,11.606,213.34,213.25,4.2176]
[1759177394521,11.606,213.34,213.28,2.16834753]
[1759177400327,11.606,213.34,213.27,4.3]
[1759177402326,11.606,213.34,213.27,8.5171]
[1759177403330,7.39,213.34,213.27,4.3]
[1759177403637,4.2155,213.36,213.27,4.3]
[1759177404535,7.72,213.37,213.3,8.5165]
[1759177404733,7.72,213.37,213.3,4.3]
[1759177404936,7.72,213.37,213.33,4.3]
[1759177405434,12.2147,213.4,213.34,4.3]
[1759177408641,8.0,213.39,213.25,4.3]
[1759177408833,8.0,213.37,213.26,3.38331833]
[1759177409035,8.0,213.35,213.26,3.38331833]
[1759177410634,12.2165,213.31,213.26,7.68331833]
[1759177411444,12.2165,213.31,213.27,4.3]
[1759177412346,8.0,213.3,213.24,3.38331833]
[1759177412545,8.0,213.3,213.24,7.68331833]
[1759177414948,8.0,213.3,213.25,4.2175]
[1759177415349,8.0,213.36,213.26,4.3]
[1759177416544,4.2162,213.33,213.26,4.3]
[1759177416740,12.2162,213.33,213.26,4.3]
[1759177417141,12.2162,213.33,213.26,11.90061833]
[1759177419552,12.2162,213.33,213.26,8.5173]
[1759177421155,70.80856044,213.38,213.27,3.38331833]
[1759177421156,4.2157,213.35,213.27,3.38331833]
[1759177421351,4.2157,213.35,213.28,4.3]
[1759177421556,8.0,213.34,213.28,4.3]
[1759177422261,8.0,213.34,213.29,4.2167]
[1759177422459,8.0,213.34,213.3,4.3]
[1759177422854,5.24066044,213.39,213.27,68.98261833]
[1759177423058,8.0,213.38,213.31,4.3]
[1759177423558,8.0,213.38,213.33,4.2158]
[1759177423753,13.24066044,213.42,213.33,3.38331833]
[1759177424057,8.0,213.42,213.35,3.38331833]
[1759177424562,8.0,213.48,213.39,4.3]
[1759177425060,8.0,213.48,213.41,3.38331833]
[1759177425357,8.0,213.48,213.42,4.3]
[1759177425662,8.0,213.54,213.45,8.5136]
[1759177426259,8.0,213.54,213.48,4.3]
[1759177427058,4.2107,213.61,213.48,4.3]